bitfinex-derivatives/quotes_BTCF0:USTF0_20250812
["timestamp","ask_amount","ask_price","bid_price","bid_amount"]
[1754986305465,1.19204969,119000.0,118990.0,0.1488836]
[1754986305659,1.19204969,119000.0,118990.0,0.45129669]
[1754986306167,0.8896366,119000.0,118990.0,0.45129669]
[1754986306364,1.19204969,119000.0,118990.0,0.45129669]
[1754986306771,0.8896366,119000.0,118990.0,0.45129669]
[1754986306971,1.19204969,119000.0,118990.0,0.45129669]
[1754986311374,0.8896366,119000.0,118990.0,0.45129669]
[1754986311774,1.19204969,119000.0,118990.0,0.45129669]
[1754986312475,1.19204969,119000.0,118990.0,0.1488836]
[1754986312666,0.8896366,119000.0,118990.0,0.45129669]
[1754986312874,1.19204969,119000.0,118990.0,0.45129669]
[1754986313977,1.19204969,119000.0,118990.0,0.1488836]
[1754986314179,1.19204969,119000.0,118990.0,0.45129669]
[1754986314975,0.8896366,119000.0,118990.0,0.45129669]
[1754986315177,1.19204969,119000.0,118990.0,0.45129669]
[1754986315576,1.19204969,119000.0,118990.0,0.1488836]
[1754986315772,1.49446278,119000.0,118990.0,0.0840436]
[1754986316080,0.0840436,118990.0,118980.0,0.3362004]
[1754986316381,0.42161669,118990.0,118980.0,0.2521503]
[1754986317578,0.42261669,118990.0,118980.0,0.2521503]
[1754986317779,0.1202036,118990.0,118980.0,0.2521503]
[1754986317972,0.42261669,118990.0,118980.0,0.2521503]
[1754986318171,0.42261669,118990.0,118980.0,0.57762339]
[1754986320286,0.1202036,118990.0,118980.0,0.57762339]
[1754986320580,0.42261669,118990.0,118980.0,0.57762339]
[1754986320879,0.42261669,118990.0,118980.0,0.58726339]
[1754986321075,0.42261669,118990.0,118980.0,0.60128339]
[1754986321581,0.1202036,118990.0,118980.0,0.60128339]
[1754986321783,0.42261669,118990.0,118980.0,0.60128339]
[1754986322781,0.42261669,118990.0,118980.0,0.61729339]
[1754986323081,0.42261669,118990.0,118980.0,0.60128339]
[1754986323685,0.42261669,118990.0,118980.0,0.61729339]
[1754986323877,0.1202036,118990.0,118980.0,0.61729339]
[1754986324077,0.42261669,118990.0,118980.0,0.61729339]
[1754986324280,0.1202036,118990.0,118980.0,0.61729339]
[1754986324480,0.42261669,118990.0,118980.0,0.61729339]
[1754986325082,0.1202036,118990.0,118980.0,0.61729339]
[1754986325283,0.42261669,118990.0,118980.0,0.61729339]
[1754986327278,0.42261669,118990.0,118980.0,0.3148803]
[1754986327478,0.42261669,118990.0,118980.0,0.61729339]
[1754986332693,0.1202036,118990.0,118980.0,0.61729339]
[1754986333095,0.42261669,118990.0,118980.0,0.61729339]
[1754986333597,0.1202036,118990.0,118980.0,0.61729339]
[1754986333797,0.42261669,118990.0,118980.0,0.91970648]
[1754986334596,0.40398669,118990.0,118980.0,0.91970648]
[1754986335397,0.40398669,118990.0,118980.0,0.94125648]
[1754986335797,0.40398669,118990.0,118980.0,0.97326648]
[1754986336898,0.1015736,118990.0,118980.0,0.97326648]
[1754986337093,0.40398669,118990.0,118980.0,0.97326648]
[1754986338699,0.1015736,118990.0,118980.0,0.97326648]
[1754986338894,0.40398669,118990.0,118980.0,0.97326648]
[1754986339293,0.2411736,118990.0,118980.0,0.97326648]
[1754986339494,1.0124136,118990.0,118980.0,0.97326648]
[1754986340101,1.31482669,118990.0,118980.0,0.3684403]
[1754986340294,1.31482669,118990.0,118980.0,0.97326648]
[1754986340603,1.31382669,118990.0,118980.0,0.97326648]
[1754986340803,1.31482669,118990.0,118980.0,0.97326648]
[1754986344705,1.31482669,118990.0,118980.0,0.3684403]
[1754986344905,1.31482669,118990.0,118980.0,0.97326648]
[1754986353705,1.33345669,118990.0,118980.0,0.3684403]
[1754986354114,1.33345669,118990.0,118980.0,0.67085339]
[1754986356216,1.33345669,118990.0,118980.0,0.3684403]
[1754986356414,1.33345669,118990.0,118980.0,0.67085339]
[1754986360521,0.56221669,118990.0,118980.0,0.67085339]
[1754986360910,1.33333669,118990.0,118980.0,0.67085339]
[1754986361221,0.56221669,118990.0,118980.0,0.67085339]
[1754986361726,1.33333669,118990.0,118980.0,0.67085339]
[1754986362523,0.56221669,118990.0,118980.0,0.67085339]
[1754986362716,1.33333669,118990.0,118980.0,0.67085339]
[1754986363424,0.56221669,118990.0,118980.0,0.67085339]
[1754986363622,1.33333669,118990.0,118980.0,0.3684403]
[1754986363824,1.33333669,118990.0,118980.0,0.67085339]
[1754986364824,1.33333669,118990.0,118980.0,0.97326648]
[1754986368931,1.0309236,118990.0,118980.0,0.97326648]
[1754986369231,1.33333669,118990.0,118980.0,0.97326648]
[1754986375530,2.83333669,118990.0,118980.0,0.97326648]
[1754986377241,2.83333669,118990.0,118980.0,0.67085339]
[1754986378236,2.83333669,118990.0,118980.0,0.3684403]
[1754986378542,2.83333669,118990.0,118980.0,0.67085339]
[1754986381147,2.83333669,118990.0,118980.0,0.3684403]
[1754986381349,2.83333669,118990.0,118980.0,0.67085339]
[1754986382449,2.83333669,118990.0,118980.0,0.3684403]
[1754986382843,2.83333669,118990.0,118980.0,0.67085339]
[1754986383843,2.5309236,118990.0,118980.0,0.67085339]
[1754986384052,2.83313669,118990.0,118980.0,0.67085339]
[1754986385655,2.5307236,118990.0,118980.0,0.67085339]
[1754986385854,2.83313669,118990.0,118980.0,0.67085339]
[1754986391751,2.5307236,118990.0,118980.0,0.67085339]
[1754986392053,2.83313669,118990.0,118980.0,0.97326648]
[1754986396758,2.83313669,118990.0,118980.0,0.3684403]
[1754986396961,2.83313669,118990.0,118980.0,0.97326648]
[1754986398661,2.83313669,118990.0,118980.0,0.67085339]
[1754986398846,2.83313669,118990.0,118980.0,0.3684403]
[1754986399051,2.83313669,118990.0,118980.0,0.67085339]
[1754986402562,2.83313669,118990.0,118980.0,0.3684403]
[1754986402763,2.83313669,118990.0,118980.0,0.67085339]
[1754986404463,2.06221669,118990.0,118980.0,0.67085339]
[1754986404664,2.5304836,118990.0,118980.0,0.67085339]
[1754986404854,2.06221669,118990.0,118980.0,0.67085339]
[1754986405054,2.83289669,118990.0,118980.0,0.67085339]
[1754986405263,2.5304836,118990.0,118980.0,0.67085339]
[1754986405559,2.83289669,118990.0,118980.0,0.67085339]
[1754986405762,2.06221669,118990.0,118980.0,0.67085339]
[1754986406164,2.83289669,118990.0,118980.0,0.67085339]
[1754986406564,2.5304836,118990.0,118980.0,0.67085339]
[1754986406755,2.06221669,118990.0,118980.0,0.67085339]
[1754986406954,2.83285669,118990.0,118980.0,0.67085339]
[1754986407861,2.83285669,118990.0,118980.0,0.97326648]
[1754986408456,2.83285669,118990.0,118980.0,0.67085339]
[1754986409866,2.5304436,118990.0,118980.0,0.67085339]
[1754986410161,2.83285669,118990.0,118980.0,0.67085339]
[1754986411064,2.83285669,118990.0,118980.0,0.97326648]
[1754986412267,2.83285669,118990.0,118980.0,0.3684403]
[1754986412564,2.83285669,118990.0,118980.0,0.97326648]
[1754986415564,2.83285669,118990.0,118980.0,0.67085339]
[1754986416760,2.83285669,118990.0,118980.0,0.97326648]
[1754986420774,2.83285669,118990.0,118980.0,0.3684403]
[1754986420977,2.83285669,118990.0,118980.0,0.67085339]
[1754986426275,2.81632669,118990.0,118980.0,0.67120339]
[1754986428778,2.5139136,118990.0,118980.0,0.67120339]
[1754986428968,2.81632669,118990.0,118980.0,0.67120339]
[1754986429776,2.81632669,118990.0,118980.0,0.67242339]
[1754986431275,2.81632669,118990.0,118980.0,0.97483648]
[1754986431477,2.5139136,118990.0,118980.0,0.97483648]
[1754986431977,2.81632669,118990.0,118980.0,0.97483648]
[1754986432276,2.5139136,118990.0,118980.0,0.97483648]
[1754986432476,2.81632669,118990.0,118980.0,0.97483648]
[1754986434476,1.65923,118990.0,118980.0,0.97483648]
[1754986434672,0.9948836,118990.0,118980.0,0.97483648]
[1754986434872,0.77124,118990.0,118980.0,1.27724957]
[1754986435176,0.77124,118990.0,118980.0,0.97483648]
[1754986436069,0.77024,118990.0,118980.0,0.97683648]
[1754986436679,0.77024,118990.0,118980.0,0.97583648]
[1754986438676,1.7521163,119000.0,118980.0,1.05988658]
[1754986438980,0.7702,118990.0,118980.0,0.68691349]
[1754986439476,0.7702,118990.0,118980.0,0.75943349]
[1754986439679,1.7707463,119000.0,118990.0,0.0840436]
[1754986439883,2.5409063,119000.0,118990.0,0.2051436]
[1754986440178,2.5409063,119000.0,118990.0,0.50755669]
[1754986440378,1.7707463,119000.0,118990.0,0.50755669]
[1754986440580,2.5408663,119000.0,118990.0,0.50755669]
[1754986441193,2.6804663,119000.0,118990.0,0.50755669]
[1754986441480,2.6804263,119000.0,118990.0,0.50755669]
[1754986441680,1.9103463,119000.0,118990.0,0.50755669]
[1754986442078,2.6804263,119000.0,118990.0,0.50755669]
[1754986442282,2.98283939,119000.0,118990.0,0.2051436]
[1754986442478,2.98383939,119000.0,118990.0,0.50755669]
[1754986442679,2.89980039,119000.0,118990.0,0.50755669]
[1754986442885,2.5133484,119000.0,118990.0,0.50755669]
[1754986443181,2.5133484,119000.0,118990.0,0.2051436]
[1754986443389,2.5133484,119000.0,118990.0,0.50755669]
[1754986444482,2.81576149,119000.0,118990.0,0.50755669]
[1754986444888,2.81576149,119000.0,118990.0,0.2051436]
[1754986445075,2.81576149,119000.0,118990.0,0.50755669]
[1754986445780,2.5133484,119000.0,118990.0,0.50755669]
[1754986446084,2.81576149,119000.0,118990.0,0.50755669]
[1754986453487,2.81552149,119000.0,118990.0,0.50755669]
[1754986460093,2.5131084,119000.0,118990.0,0.50755669]
[1754986460494,2.81552149,119000.0,118990.0,0.50755669]
[1754986464787,2.81532149,119000.0,118990.0,0.50755669]
[1754986465405,2.04568149,119000.0,118990.0,0.50755669]
[1754986465594,2.81528149,119000.0,118990.0,0.2051436]
[1754986465797,2.81528149,119000.0,118990.0,0.50755669]
[1754986467500,2.81528149,119000.0,118990.0,0.2051436]
[1754986467701,2.81528149,119000.0,118990.0,0.50755669]
[1754986468596,2.5128684,119000.0,118990.0,0.50755669]
[1754986468801,2.81528149,119000.0,118990.0,0.50755669]
[1754986472708,1.31528149,119000.0,118990.0,0.50755669]
[1754986474708,1.31528149,119000.0,118990.0,0.2051436]
[1754986474906,1.0128684,119000.0,118990.0,0.50755669]
[1754986475407,1.31528149,119000.0,118990.0,0.50755669]
[1754986476405,1.0128684,119000.0,118990.0,0.2051436]
[1754986476706,1.31528149,119000.0,118990.0,0.50755669]
[1754986494317,1.31528149,119000.0,118990.0,0.2051436]
[1754986494616,1.31528149,119000.0,118990.0,0.50755669]
[1754986501632,1.61769458,119000.0,118990.0,0.0840436]
[1754986502535,1.61769458,119000.0,118980.0,0.68048064]
[1754986502536,0.0840432,118990.0,118980.0,0.68048064]
[1754986502832,0.42095629,118990.0,118980.0,0.68997064]
[1754986503031,0.42095629,118990.0,118980.0,0.70385064]
[1754986503232,0.42095629,118990.0,118980.0,0.73622064]
[1754986503829,0.42095629,118990.0,118980.0,0.75918064]
[1754986504135,0.42095629,118990.0,118980.0,0.77569064]
[1754986504437,0.42095629,118990.0,118980.0,0.77669064]
[1754986506235,0.42095629,118990.0,118980.0,0.47427755]
[1754986506440,0.42095629,118990.0,118980.0,0.77669064]
[1754986507239,0.0345,118990.0,118980.0,0.77669064]
[1754986507539,0.33691309,118990.0,118980.0,1.07910373]
[1754986508042,0.42095629,118990.0,118980.0,1.07910373]
[1754986509342,0.1185432,118990.0,118980.0,1.07910373]
[1754986509543,0.0999132,118990.0,118980.0,1.07910373]
[1754986511445,0.01587,118990.0,118980.0,1.07910373]
[1754986511643,0.76872,118990.0,118980.0,1.07910373]
[1754986512446,0.8527633,118990.0,118980.0,1.07910373]
[1754986513448,0.9923633,118990.0,118980.0,1.07910373]
[1754986514045,0.90832,118990.0,118980.0,1.07910373]
[1754986514847,0.9923632,118990.0,118980.0,1.07910373]
[1754986515748,0.90832,118990.0,118980.0,1.07910373]
[1754986516350,0.90832,118990.0,118980.0,0.47427755]
[1754986516647,0.90832,118990.0,118980.0,1.07910373]
[1754986516847,0.92419,118990.0,118980.0,1.07910373]
[1754986517049,1.0082332,118990.0,118980.0,1.07910373]
[1754986518545,1.0082332,118990.0,118980.0,0.47427755]
[1754986518762,0.92419,118990.0,118980.0,1.07910373]
[1754986519552,1.0082332,118990.0,118980.0,1.07910373]
[1754986523055,0.92419,118990.0,118980.0,1.07910373]
[1754986526156,1.0082334,118990.0,118980.0,0.47427755]
[1754986526357,1.0082334,118990.0,118980.0,1.07910373]
[1754986526656,1.0082334,118990.0,118980.0,0.47427755]
[1754986526857,1.0082334,118990.0,118980.0,1.07910373]
[1754986527256,1.0079134,118990.0,118980.0,1.07910373]
[1754986527459,1.0265434,118990.0,118980.0,1.07910373]
[1754986527660,0.2581434,118990.0,118980.0,1.07910373]
[1754986527959,1.0265434,118990.0,118980.0,1.07910373]
[1754986528361,0.2581434,118990.0,118980.0,1.07910373]
[1754986528662,0.15547,118990.0,118980.0,1.07910373]
[1754986528853,0.92387,118990.0,118980.0,1.07910373]
[1754986529161,0.15547,118990.0,118980.0,1.07910373]
[1754986529359,1.0079134,118990.0,118980.0,1.07910373]
[1754986529755,1.0265434,118990.0,118980.0,1.07910373]
[1754986530460,0.2581434,118990.0,118980.0,1.07910373]
[1754986530859,1.0265034,118990.0,118980.0,1.07910373]
[1754986531059,0.2581434,118990.0,118980.0,1.07910373]
[1754986531250,0.56055649,118990.0,118980.0,1.07910373]
[1754986531454,1.32891649,118990.0,118980.0,1.07910373]
[1754986534664,1.32891649,118990.0,118980.0,0.47427755]
[1754986535164,1.32891649,118990.0,118980.0,1.07910373]
[1754986535765,1.0265034,118990.0,118980.0,1.07910373]
[1754986535960,1.32891649,118990.0,118980.0,1.07910373]
[1754986537268,1.0265034,118990.0,118980.0,1.07910373]
[1754986537959,1.0078734,118990.0,118980.0,1.07910373]
[1754986539067,0.92383,118990.0,118980.0,1.07910373]
[1754986539367,1.0078734,118990.0,118980.0,1.07910373]
[1754986540668,0.92383,118990.0,118980.0,1.07910373]
[1754986541365,0.1396,118990.0,118980.0,1.07910373]
[1754986541574,0.90776,118990.0,118980.0,1.07910373]
[1754986543073,2.19657921,119010.0,119000.0,0.0840364]
[1754986543275,2.98336921,119010.0,119000.0,0.50730949]
[1754986544983,2.98436921,119010.0,119000.0,0.50730949]
[1754986548785,2.98436921,119010.0,119000.0,0.47240949]
[1754986550486,2.98436921,119010.0,119000.0,0.38837309]
[1754986550678,2.98436921,119010.0,119000.0,0.08596]
[1754986551184,2.98436921,119010.0,119000.0,0.47240949]
[1754986551385,2.98436921,119010.0,119000.0,0.38837309]
[1754986551575,2.98436921,119010.0,119000.0,0.37379309]
[1754986551780,2.98436921,119010.0,119000.0,0.03301]
[1754986552186,2.98416921,119010.0,119000.0,0.1170464]
[1754986555086,2.98416921,119010.0,119000.0,0.1177564]
[1754986556287,2.98416921,119010.0,119000.0,0.1318664]
[1754986557480,2.98416921,119010.0,119000.0,0.03372]
[1754986557680,2.98416921,119010.0,118990.0,0.71069119]
[1754986557681,0.0840363,119000.0,118990.0,0.71069119]
[1754986557882,0.42012939,119000.0,118990.0,0.75682119]
[1754986558385,1.18796939,119000.0,118990.0,0.75682119]
[1754986558680,1.17291939,119000.0,118990.0,0.75682119]
[1754986559181,1.17391939,119000.0,118990.0,0.67277779]
[1754986559387,1.47633248,119000.0,118990.0,0.41942039]
[1754986559883,1.47633248,119000.0,118990.0,0.43353039]
[1754986560088,1.47633248,119000.0,118990.0,0.46771039]
[1754986560288,1.47633248,119000.0,118990.0,0.1170073]
[1754986560489,1.47633248,119000.0,118990.0,0.1078673]
[1754986561080,0.0840434,118990.0,118980.0,0.01727715]
[1754986561288,0.55973649,118990.0,118980.0,0.01727715]
[1754986561791,0.56119969,118990.0,118980.0,0.01727715]
[1754986562392,0.56119969,118990.0,118980.0,0.01827715]
[1754986562589,0.56119969,118990.0,118980.0,0.001]
[1754986563089,0.56119969,118990.0,118950.0,0.3243348]
[1754986563090,0.0840646,118960.0,118950.0,0.3243348]
[1754986563291,1.16928769,118960.0,118950.0,0.71900949]
[1754986563490,1.18791769,118960.0,118950.0,0.71900949]
[1754986563888,1.18791769,118960.0,118950.0,0.75694949]
[1754986564082,0.8855046,118960.0,118950.0,0.75694949]
[1754986564489,0.89390234,118960.0,118950.0,0.75694949]
[1754986564688,1.19631543,118960.0,118950.0,0.4545364]
[1754986564889,1.66687092,118960.0,118950.0,0.03297]
[1754986565097,1.66687092,118960.0,118950.0,0.1681417]
[1754986565301,1.36445783,118960.0,118950.0,0.50473479]
[1754986568697,1.66687092,118960.0,118950.0,0.2023217]
[1754986568893,1.66687092,118960.0,118950.0,0.11825]
[1754986569200,1.66687092,118960.0,118950.0,0.1681417]
[1754986570397,1.66687092,118960.0,118950.0,0.02107]
[1754986570602,0.0840717,118950.0,118940.0,0.1919815]
[1754986570804,0.42016479,118950.0,118940.0,0.58881459]
[1754986571305,0.42016479,118950.0,118940.0,0.2864015]
[1754986571499,0.42016479,118950.0,118940.0,0.58881459]
[1754986571696,0.1177517,118950.0,118940.0,0.58881459]
[1754986571897,0.42016479,118950.0,118940.0,0.59181459]
[1754986572205,0.18423348,118950.0,118940.0,0.59181459]
[1754986572401,0.48664657,118950.0,118940.0,0.59181459]
[1754986572706,0.42016479,118950.0,118940.0,0.50774189]
[1754986573400,0.42016479,118950.0,118940.0,0.2053288]
[1754986574604,0.42016479,118950.0,118940.0,0.02683]
[1754986575004,0.42016479,118950.0,118940.0,0.03597]
[1754986575208,0.42016479,118950.0,118940.0,0.08426]
[1754986575506,0.42016479,118950.0,118940.0,0.1683387]
[1754986575707,0.42016479,118950.0,118940.0,0.1894087]
[1754986576006,0.42016479,118950.0,118940.0,0.2053287]
[1754986577005,0.43893502,118950.0,118940.0,0.12125]
[1754986577401,0.50460293,118950.0,118940.0,0.12125]
[1754986578206,0.50460293,118950.0,118940.0,0.08707]
[1754986578408,0.80701602,118950.0,118940.0,0.003]
[1754986578701,0.64420293,118950.0,118940.0,0.02683]
[1754986578901,0.94661602,118950.0,118940.0,0.003]
[1754986579114,0.64420293,118950.0,118940.0,0.02588]
[1754986579500,0.64420293,118950.0,118940.0,0.03997]
[1754986579701,0.64420293,118950.0,118940.0,0.04925]
[1754986579901,0.64420293,118950.0,118940.0,0.08322]
[1754986580102,1.39333293,118950.0,118940.0,0.50748159]
[1754986580314,1.41196293,118950.0,118940.0,0.50748159]
[1754986580610,1.41196293,118950.0,118940.0,0.12099]
[1754986580810,1.41196293,118950.0,118940.0,0.11899]
[1754986582705,1.5394787,118950.0,118940.0,0.11899]
[1754986582905,1.5394787,118950.0,118940.0,0.2030685]
[1754986583501,1.5394787,118950.0,118940.0,0.11899]
[1754986583905,1.51288891,118950.0,118940.0,0.11899]
[1754986584318,1.53948725,118950.0,118940.0,0.11899]
[1754986588113,1.53948725,118950.0,118940.0,0.08402]
[1754986589513,1.53948725,118950.0,118940.0,0.2030686]
[1754986590108,1.53948725,118950.0,118940.0,0.06993]
[1754986590618,1.53948725,118950.0,118940.0,0.11899]
[1754986591217,1.53948725,118950.0,118940.0,0.2030686]
[1754986591720,1.13614818,118950.0,118940.0,0.2030686]
[1754986591919,1.53948725,118950.0,118940.0,0.2030686]
[1754986598220,1.13614818,118950.0,118940.0,0.2030686]
[1754986598718,1.53948725,118950.0,118940.0,0.2030686]
[1754986599713,0.75309725,118950.0,118940.0,0.2030686]
[1754986599922,1.03324648,118950.0,118940.0,0.60640767]
[1754986603219,1.03324648,118950.0,118940.0,0.2030686]
[1754986603423,1.03324648,118950.0,118940.0,0.60640767]
[1754986604413,1.00664814,118950.0,118940.0,0.60640767]
[1754986604615,1.00664814,118950.0,118940.0,0.80792568]
[1754986605721,1.00664814,118950.0,118940.0,0.2030686]
[1754986606422,1.30907668,118950.0,118940.0,0.80792568]
[1754986607617,0.54151668,118950.0,118940.0,0.80792568]
[1754986607812,1.30895668,118950.0,118940.0,0.80792568]
[1754986608318,0.54151668,118950.0,118940.0,0.80792568]
[1754986608516,0.22403814,118950.0,118940.0,1.11035422]
[1754986608823,0.92577023,118950.0,118940.0,1.11035422]
[1754986609120,0.92577023,118950.0,118940.0,0.80792568]
[1754986610620,0.92577023,118950.0,118940.0,0.60621651]
[1754986615522,0.9938189,118950.0,118940.0,0.60621651]
[1754986617124,1.0092189,118950.0,118940.0,0.60621651]
[1754986619728,1.0092189,118950.0,118940.0,0.2030686]
[1754986619923,1.0092189,118950.0,118940.0,0.60621651]
[1754986621221,1.0278489,118950.0,118940.0,0.60621651]
[1754986622323,0.95980023,118950.0,118940.0,0.60621651]
[1754986623327,0.95980023,118950.0,118940.0,0.2030686]
[1754986623525,0.95980023,118950.0,118940.0,0.60621651]
[1754986627023,0.94117023,118950.0,118940.0,0.60621651]
[1754986628026,0.01877023,118950.0,118940.0,0.60621651]
[1754986628222,3e-08,118950.0,118940.0,0.60621651]
[1754986628427,0.76704,118960.0,118950.0,0.0840713]
[1754986628632,0.78244,118960.0,118950.0,0.66268616]
[1754986628930,0.78244,118960.0,118950.0,0.33345825]
[1754986629234,0.78244,118960.0,118950.0,0.73660616]
[1754986630033,0.78344,118960.0,118950.0,0.73660616]
[1754986630436,0.76804,118960.0,118950.0,0.73660616]
[1754986630928,0.78444,118960.0,118950.0,0.73660616]
[1754986631429,0.002,118960.0,118950.0,0.73660616]
[1754986632026,0.002,118960.0,118950.0,0.74509583]
[1754986633633,0.001,118960.0,118950.0,0.74509583]
[1754986633834,0.76696,118970.0,118950.0,0.99730503]
[1754986634033,0.76696,118970.0,118960.0,0.56113211]
[1754986634236,0.78236,118970.0,118960.0,0.60997211]
[1754986635536,0.80099,118970.0,118960.0,0.60997211]
[1754986636239,0.80199,118970.0,118960.0,0.60997211]
[1754986636837,0.80299,118970.0,118960.0,0.60997211]
[1754986637240,0.78436,118970.0,118960.0,0.60997211]
[1754986637531,0.80299,118970.0,118960.0,0.60997211]
[1754986642643,0.80299,118970.0,118960.0,0.81139912]
[1754986643846,0.94259,118970.0,118960.0,0.81139912]
[1754986649241,0.0174,118970.0,118960.0,0.81139912]
[1754986649448,0.76864,118970.0,118960.0,1.11368658]
[1754986649650,0.76864,118970.0,118960.0,0.81139912]
[1754986649843,0.78427,118970.0,118960.0,0.81139912]
[1754986651043,0.76864,118970.0,118960.0,1.11368658]
[1754986651244,0.76864,118970.0,118960.0,0.81139912]
[1754986651445,0.78427,118970.0,118960.0,0.81139912]
[1754986651950,0.01763,118970.0,118960.0,0.81139912]
[1754986658551,0.01763,118970.0,118960.0,1.11368658]
[1754986658846,0.002,118970.0,118960.0,0.81139912]
[1754986659053,0.002,118970.0,118960.0,0.2068242]
[1754986659553,0.01763,118970.0,118960.0,0.81139912]
[1754986664253,0.03626,118970.0,118960.0,0.81139912]
[1754986664953,0.01763,118970.0,118960.0,0.81139912]
[1754986666948,0.78399,118970.0,118960.0,0.81139912]
[1754986668860,0.01763,118970.0,118960.0,0.81139912]
[1754986673264,0.002,118970.0,118960.0,0.81139912]
[1754986675974,0.002,118970.0,118960.0,0.2068242]
[1754986676167,0.002,118970.0,118960.0,0.81139912]
[1754986683868,0.002,118970.0,118960.0,0.2068242]
[1754986684069,0.002,118970.0,118960.0,0.81139912]
[1754986701183,0.002,118970.0,118960.0,0.2068242]
[1754986701384,0.002,118970.0,118960.0,0.81139912]
[1754986710491,0.002,118970.0,118960.0,0.2068242]
[1754986710695,0.002,118970.0,118960.0,0.81139912]
[1754986712103,0.002,118970.0,118960.0,0.2068242]
[1754986712399,0.002,118970.0,118960.0,0.81139912]
[1754986713096,0.0860572,118970.0,118960.0,0.81139912]
[1754986713597,0.002,118970.0,118960.0,0.81139912]
[1754986714392,0.1416,118970.0,118960.0,0.81139912]
[1754986714597,0.002,118970.0,118960.0,0.81139912]
[1754986720202,0.002,118970.0,118960.0,1.11368658]
[1754986721501,0.76568,118980.0,118960.0,1.28181038]
[1754986721802,0.76568,118980.0,118970.0,0.75901212]
[1754986722003,0.76568,118980.0,118970.0,0.80764212]
[1754986723602,0.76568,118980.0,118970.0,0.50535466]
[1754986724303,0.71636343,118990.0,118970.0,0.67346436]
[1754986724505,0.71636343,118990.0,118980.0,0.38633756]
[1754986724700,1.50124343,118990.0,118980.0,0.50534756]
[1754986725902,1.50124343,118990.0,118980.0,0.50634756]
[1754986726403,1.50224343,118990.0,118980.0,0.50634756]
[1754986727105,1.50124343,118990.0,118980.0,0.50634756]
[1754986728407,0.73560343,118990.0,118980.0,0.50634756]
[1754986728799,1.50120343,118990.0,118980.0,0.50634756]
[1754986729206,0.51195443,118990.0,118980.0,0.50634756]
[1754986729407,1.27755443,118990.0,118980.0,0.50634756]
[1754986731409,1.27755443,118990.0,118980.0,0.80863502]
[1754986731908,1.27755443,118990.0,118980.0,0.50634756]
[1754986732610,0.80233377,118990.0,118980.0,0.50634756]
[1754986732810,1.10946123,118990.0,118980.0,0.80863502]
[1754986733809,1.24906123,118990.0,118980.0,0.80863502]
[1754986734212,1.33310433,118990.0,118980.0,0.80863502]
[1754986734811,1.35173433,118990.0,118980.0,0.80863502]
[1754986736317,1.35173433,118990.0,118980.0,0.50634756]
[1754986737914,1.35173433,118990.0,118980.0,0.80863502]
[1754986738214,1.31684433,118990.0,118980.0,0.80823502]
[1754986739616,0.93051377,118990.0,118980.0,0.80823502]
[1754986740215,0.16491377,118990.0,118980.0,0.80823502]
[1754986740515,0.01901057,118990.0,118980.0,1.11052248]
[1754986740715,0.78449057,118990.0,118980.0,0.80823502]
[1754986740914,0.76548,118990.0,118980.0,0.80823502]
[1754986741715,0.76548,118990.0,118980.0,0.76829502]
[1754986742015,0.76548,118990.0,118980.0,0.77671392]
[1754986742414,0.76544,119000.0,118990.0,0.3361615]
[1754986742613,1.249755,119010.0,119000.0,0.084036]
[1754986742817,2.015195,119010.0,119000.0,0.76662092]
[1754986743914,2.017195,119010.0,119000.0,0.76662092]
[1754986744320,1.99810154,119010.0,119000.0,0.76662092]
[1754986744520,1.23266154,119010.0,119000.0,0.76662092]
[1754986744920,1.99806154,119010.0,119000.0,0.76662092]
[1754986745424,2.00006154,119010.0,119000.0,0.76662092]
[1754986746224,1.23466154,119010.0,119000.0,0.76662092]
[1754986746421,2.00002154,119010.0,119000.0,0.76662092]
[1754986746748,1.99998154,119010.0,119000.0,0.76662092]
[1754986747142,0.07044154,119010.0,119000.0,0.76662092]
[1754986747448,0.83762154,119010.0,119000.0,0.76662092]
[1754986748249,0.83758154,119010.0,119000.0,0.76662092]
[1754986748944,0.84056154,119010.0,119000.0,0.76662092]
[1754986751753,0.77404,119010.0,119000.0,0.76662092]
[1754986763159,0.77388,119010.0,119000.0,0.76662092]
[1754986763559,0.00884,119010.0,119000.0,0.76662092]
[1754986763757,0.77384,119010.0,119000.0,0.76662092]
[1754986764057,0.00884,119010.0,119000.0,0.76662092]
[1754986764258,0.77384,119010.0,119000.0,0.76662092]
[1754986764461,0.00884,119010.0,119000.0,0.76662092]
[1754986764852,0.77384,119010.0,119000.0,0.76662092]
[1754986765654,0.00884,119010.0,119000.0,0.76662092]
[1754986765959,1.13464,119010.0,119000.0,0.76662092]
[1754986766360,0.36964,119010.0,119000.0,0.76662092]
[1754986766560,1.1346,119010.0,119000.0,0.76662092]
[1754986774266,1.12976,119010.0,119000.0,0.76662092]
[1754986774565,1.13162,119010.0,119000.0,0.76662092]
[1754986780264,0.77082,119010.0,119000.0,0.76662092]
[1754986780471,0.7738,119010.0,119000.0,0.76662092]
[1754986790375,0.00884,119010.0,119000.0,0.76662092]
[1754986790564,0.77352,119010.0,119000.0,0.76662092]
[1754986794877,0.8575489,119010.0,119000.0,0.76662092]
[1754986796283,1.2183489,119010.0,119000.0,0.76662092]
[1754986800984,1.13432,119010.0,119000.0,0.76662092]
[1754986801788,1.13432,119010.0,119000.0,0.80521092]
[1754986803293,1.2183489,119010.0,119000.0,0.80521092]
[1754986803494,1.2369789,119010.0,119000.0,0.80521092]
[1754986804198,1.15295,119010.0,119000.0,0.80521092]
[1754986804496,1.2369789,119010.0,119000.0,0.80521092]
[1754986805200,1.15295,119010.0,119000.0,0.80521092]
[1754986805596,1.2369789,119010.0,119000.0,0.80521092]
[1754986818800,0.8761789,119010.0,119000.0,0.80521092]
[1754986819005,1.2521489,119010.0,119000.0,0.80521092]
[1754986823809,1.16812,119010.0,119000.0,0.80521092]
[1754986824018,1.14949,119010.0,119000.0,0.80521092]
[1754986825806,0.38481,119010.0,119000.0,0.80521092]
[1754986826006,1.14905,119010.0,119000.0,0.80521092]
[1754986826516,0.38481,119010.0,119000.0,0.80521092]
[1754986826814,1.14901,119010.0,119000.0,0.80521092]
[1754986828516,1.16764,119010.0,119000.0,0.80521092]
[1754986829409,1.16764,119010.0,119000.0,0.82194968]
[1754986833621,1.16764,119010.0,119000.0,0.82219147]
[1754986836218,1.16764,119010.0,119000.0,0.21761655]
[1754986836420,1.16764,119010.0,119000.0,0.82219147]
[1754986840026,1.16764,119010.0,119000.0,0.21761655]
[1754986840322,1.16764,119010.0,119000.0,0.82219147]
[1754986852126,1.14901,119010.0,119000.0,0.82219147]
[1754986853232,1.129,119010.0,119000.0,0.82219147]
[1754986853433,1.13086,119010.0,119000.0,0.82219147]
[1754986854336,1.14949,119010.0,119000.0,0.82219147]
[1754986854532,1.14949,119010.0,119000.0,0.21761655]
[1754986854842,1.14949,119010.0,119000.0,0.82219147]
[1754986861950,1.14949,119010.0,119000.0,0.21761655]
[1754986862155,1.14949,119010.0,119000.0,0.82219147]